fUSD/lending_fUSD_20260205
["ID","MTS","AMOUNT","RATE_DAILY","PERIOD"]
[404538242,1770263442969,-1939.59,0.00014384,2]
[404538243,1770263442979,-510.72054169,0.00014384,2]
[404538244,1770263442988,-951.124593,0.00014459,7]
[404538245,1770263442998,-1000.0,0.00014515,2]
[404538246,1770263443009,-322.43,0.00014519,2]
[404538247,1770263443019,-3491.028,0.00014561,2]
[404538248,1770263443029,-616.445,0.00014561,2]
[404538249,1770263443038,-1335.0,0.00014561,2]
[404538250,1770263443048,-1411.0,0.00014561,2]
[404538251,1770263443062,-1271.0,0.00014561,2]
[404538252,1770263443071,-150.0,0.00014561,2]
[404538254,1770263443081,-568.607,0.00014561,2]
[404538257,1770263443091,-6581.0,0.00014561,2]
[404538259,1770263443100,-3254.0,0.00014561,2]
[404538260,1770263443110,-500.0,0.000146,2]
[404538261,1770263443119,-500.0,0.000146,2]
[404538262,1770263443128,-504.24108191,0.000146,2]
[404538263,1770263443138,-495.76472611,0.000146,2]
[404538264,1770263443148,-500.0,0.000146,2]
[404538265,1770263443158,-500.0,0.000146,2]
[404538266,1770263443167,-5530.0,0.000146,5]
[404538267,1770263443177,-322.43,0.00014793,2]
[404538268,1770263443186,-29759.72262329,0.00015,2]
[404538269,1770263443196,-418.21759378,0.00015,2]
[404538270,1770263443205,-250.0,0.00015,2]
[404538271,1770263443215,-152.62,0.00015,2]
[404538272,1770263443225,-322.43,0.00015067,2]
[404538273,1770263443236,-450.32,0.00015068,2]
[404538274,1770263443250,-1939.59,0.00015068,2]
[404538275,1770263443260,-13099.73275899,0.00015121,2]
[404538276,1770263443270,-1000.0,0.00015148,2]
[404538277,1770263443281,-1517.64,0.000153,2]
[404538278,1770263443293,-231.24,0.00015317,2]
[404538279,1770263443302,-322.53715052,0.00015341,2]
[404538280,1770263443312,-7506.55405028,0.00015342,2]
[404538281,1770263443322,-151.0,0.00015342,2]
[404538282,1770263443331,-151.0,0.00015342,2]
[404538283,1770263443341,-151.0,0.00015342,2]
[404538284,1770263443350,-151.0,0.00015342,2]
[404538285,1770263443360,-508.83519453,0.000154,2]
[404538286,1770263443370,-2550.17704393,0.00015535,2]
[404538287,1770263443379,-1500.0,0.00015696,2]
[404538288,1770263443388,-1939.59,0.00015753,2]
[404538289,1770263443398,-2046.60264728,0.00015807,2]
[404538290,1770263443407,-2863.81060744,0.00015879,2]
[404538291,1770263443417,-237.4445,0.000159,2]
[404538292,1770263443427,-1506.0,0.000159,2]
[404538293,1770263443437,-200.0,0.00015904,2]
[404538294,1770263443450,-150.0,0.00015904,2]
[404538295,1770263443460,-150.0,0.00015904,2]
[404538296,1770263443469,-150.0,0.00015904,2]
[404538297,1770263443478,-150.0,0.00015904,2]
[404538298,1770263443488,-150.0,0.00015904,2]
[404538299,1770263443497,-150.0,0.00015904,2]
[404538300,1770263443508,-150.0,0.00015904,2]
[404538301,1770263443517,-197.54,0.00015918,2]
[404538302,1770263443527,-151.0,0.00015997,2]
[404538303,1770263443537,-160.0,0.00015998,2]
[404538304,1770263443547,-778.44145262,0.00015999,2]
[404538305,1770263443557,-519.49,0.00015999,2]
[404538306,1770263443567,-519.49,0.00015999,2]
[404538307,1770263443576,-519.49,0.00015999,2]
[404538308,1770263443586,-519.49,0.00015999,2]
[404538309,1770263443608,-519.53,0.00015999,2]
[404538310,1770263443617,-957.19260386,0.00016,2]
[404538311,1770263443627,-320.47368523,0.00016,2]
[404538312,1770263443638,-5956.53345956,0.00016,2]
[404538313,1770263443648,-151.0,0.00016,2]
[404538314,1770263443657,-151.0,0.00016,2]
[404538315,1770263443667,-386.007616,0.00016,2]
[404538316,1770263443677,-386.007616,0.00016,2]
[404538317,1770263443687,-386.007616,0.00016,2]
[404538318,1770263443698,-386.007616,0.00016,2]
[404538319,1770263443708,-151.0,0.00016,2]
[404538320,1770263443717,-151.0,0.00016,2]
[404538321,1770263443727,-151.0,0.00016,2]
[404538322,1770263443737,-13099.73275899,0.00016047,2]
[404538323,1770263443747,-23141.24082154,0.0001606,2]
[404538324,1770263443758,-251.95,0.00016184,2]
[404538325,1770263443768,-1291.24412758,0.00016244,2]
[404538326,1770263443777,-367.51785682,0.00016364,2]
[404538327,1770263443787,-154.14686723,0.00016418,2]
[404538328,1770263443800,-450.32,0.00016438,2]
[404538329,1770263443809,-151.0,0.00016438,2]
[404538330,1770263443820,-151.0,0.00016438,2]
[404538331,1770263443829,-1939.59,0.00016438,2]
[404538332,1770263443839,-1000.0,0.00016438,2]
[404538333,1770263443849,-169.44963,0.00016438,2]
[404538334,1770263443859,-305.85808466,0.00016699,2]
[404538335,1770263443868,-1000.0,0.00016712,2]
[404538336,1770263443877,-165.83,0.00016712,2]
[404538337,1770263443887,-2550.17704393,0.00016717,2]
[404538338,1770263443896,-13099.73275899,0.00016974,2]
[404538339,1770263443906,-23141.24082154,0.0001698,2]
[404538340,1770263443916,-322.6107,0.00016981,2]
[404538341,1770263443925,-2000.0,0.00016981,2]
[404538342,1770263443935,-1449.10348087,0.00016981,2]
[404538343,1770263443945,-2000.0,0.00016981,2]
[404538344,1770263443955,-2000.0,0.00016981,2]
[404538345,1770263443964,-2000.0,0.00016981,2]
[404538346,1770263443974,-743.50770149,0.00016981,2]
[404538347,1770263443984,-2000.0,0.00016981,2]
[404538348,1770263443994,-2000.0,0.00016981,2]
[404538349,1770263444004,-174.61919141,0.00016981,2]
[404538350,1770263444013,-2000.0,0.00016981,2]
[404538351,1770263444023,-1508.30623238,0.00016981,2]
[404538352,1770263444032,-578.20924308,0.00016981,2]
[404538353,1770263444041,-209.40437684,0.00016981,2]
[404538354,1770263444051,-1000.0,0.00016986,2]
[404538355,1770263444060,-300.0,0.00017,2]
[404538356,1770263444070,-151.0,0.00017,2]
[404538357,1770263444079,-152.88679959,0.00017035,2]
[404538358,1770263444089,-217.15233878,0.00017036,2]
[404538359,1770263444099,-154.0,0.00017078,3]
[404538360,1770263444108,-792.603827,0.00017087,7]
[404538361,1770263444118,-225.18697532,0.00017091,2]
[404538362,1770263444127,-197.54,0.00017112,2]
[404538363,1770263444137,-200.0,0.00017122,2]
[404538364,1770263444147,-233.51889341,0.00017146,2]
[404538365,1770263444156,-242.15909246,0.00017201,2]
[404538366,1770263444166,-251.11897888,0.00017256,2]
[404538367,1770263444176,-1000.0,0.0001726,2]
[404538368,1770263444186,-2460.0,0.00017288,2]
[404538369,1770263444195,-260.4103811,0.00017311,2]
[404538370,1770263444204,-231.24,0.00017333,2]
[404538371,1770263444214,-270.0455652,0.00017366,2]
[404538372,1770263444224,-2460.0,0.00017399,2]
[404538373,1770263444233,-280.03725112,0.00017421,2]
[404538374,1770263444243,-290.39862941,0.00017476,2]
[404538375,1770263444252,-181.08010149,0.00017529,2]
[404538376,1770263444262,-301.1433787,0.00017531,2]
[404538377,1770263444271,-1000.0,0.00017534,2]
[404538378,1770263444280,-2863.81060744,0.00017547,2]
[404538379,1770263444290,-3482.0,0.00017561,2]
[404538380,1770263444299,-616.0,0.00017561,2]
[404538381,1770263444309,-1335.0,0.00017561,2]
[404538382,1770263444319,-1411.0,0.00017561,2]
[404538383,1770263444328,-1271.0,0.00017561,2]
[404538384,1770263444338,-568.0,0.00017561,2]
[404538385,1770263444348,-6581.0,0.00017561,2]
[404538386,1770263444357,-3254.0,0.00017561,2]
[404538387,1770263444367,-200.0,0.00017566,2]
[404538388,1770263444376,-151.0,0.00017578,2]
[404538389,1770263444385,-151.0,0.00017578,2]
[404538390,1770263444395,-150.0,0.00017644,2]
[404538391,1770263444404,-187.89185227,0.00017644,2]
[404538392,1770263444413,-150.0,0.00017644,2]
[404538393,1770263444424,-150.0,0.00017644,2]
[404538394,1770263444433,-1444.0,0.00017667,2]
[404538395,1770263444443,-150.0,0.00017699,2]
[404538396,1770263444452,-150.0,0.00017699,2]
[404538397,1770263444462,-150.0,0.00017754,2]
[404538398,1770263444471,-150.0,0.00017754,2]
[404538399,1770263444480,-1444.0,0.00017792,2]
[404538400,1770263444490,-1000.0,0.00017808,2]
[404538401,1770263444499,-269.4491186,0.00017808,2]
[404538402,1770263444510,-150.0,0.00017808,2]
[404538403,1770263444519,-1444.0,0.00017811,2]
[404538404,1770263444529,-179.37879,0.0001782,2]
[404538405,1770263444539,-179.37879,0.0001782,2]
[404538406,1770263444548,-179.37878,0.0001782,2]
[404538407,1770263444558,-200.0,0.00017842,2]
[404538408,1770263444567,-200.0,0.00017859,2]
[404538409,1770263444577,-150.0,0.00017863,2]
[404538410,1770263444587,-167.56455375,0.00017888,2]
[404538411,1770263444597,-23141.24082154,0.000179,2]
[404538412,1770263444612,-5201.14316451,0.000179,2]
[404538413,1770263444623,-13099.73275899,0.000179,2]
[404538414,1770263444632,-2550.17704393,0.000179,2]
[404538415,1770263444643,-1066.21775424,0.000179,3]
[404538416,1770263444657,-202.05134841,0.00017918,2]
[404538417,1770263444669,-200.0,0.00017927,2]
[404538418,1770263444680,-500.0,0.00017973,2]
[404538419,1770263444690,-500.0,0.00017973,2]
[404538420,1770263444700,-500.0,0.00017973,2]
[404538421,1770263444712,-500.0,0.00017973,2]
[404538422,1770263444722,-309.44398841,0.00017973,2]
[404538423,1770263444731,-500.0,0.00017973,2]
[404538424,1770263444740,-500.0,0.00017973,2]
[404538425,1770263444751,-500.0,0.00017973,2]
[404538426,1770263444761,-500.0,0.00017973,2]
[404538427,1770263444771,-500.0,0.00017973,2]
[404538428,1770263444780,-500.0,0.00017973,2]
[404538429,1770263444790,-500.0,0.00017973,2]
[404538431,1770263444799,-500.0,0.00017973,2]
[404538433,1770263444810,-500.0,0.00017973,2]
[404538435,1770263444819,-500.0,0.00017973,2]
[404538437,1770263444829,-500.0,0.00017973,2]
[404538439,1770263444838,-520.97702983,0.00017973,2]
[404538441,1770263444847,-500.0,0.00017973,2]
[404538443,1770263444857,-500.0,0.00017973,2]
[404538445,1770263444866,-500.0,0.00017973,2]
[404538446,1770263444876,-500.0,0.00017973,2]
[404538448,1770263444885,-500.0,0.00017973,2]
[404538450,1770263444896,-500.0,0.00017973,2]
[404538451,1770263444905,-500.0,0.00017973,2]
[404538452,1770263444914,-500.0,0.00017973,2]
[404538453,1770263444924,-500.0,0.00017973,2]
[404538454,1770263444934,-500.0,0.00017973,2]
[404538455,1770263444943,-500.0,0.00017973,2]
[404538456,1770263444953,-500.0,0.00017973,2]
[404538457,1770263444963,-500.0,0.00017973,2]
[404538458,1770263444973,-500.0,0.00017973,2]
[404538459,1770263444983,-500.0,0.00017973,2]
[404538460,1770263444992,-500.0,0.00017973,2]
[404538461,1770263445002,-500.0,0.00017973,2]
[404538462,1770263445013,-500.0,0.00017973,2]
[404538463,1770263445022,-561.5530591,0.00017973,2]
[404538464,1770263445031,-262.39107038,0.00017973,2]
[404538465,1770263445042,-502.08032841,0.00017973,2]
[404538466,1770263445052,-500.0,0.00017973,2]
[404538467,1770263445061,-500.0,0.00017973,2]
[404538468,1770263445071,-500.0,0.00017973,2]
[404538469,1770263445083,-162.3415577,0.00017997,2]
[404538470,1770263445092,-150.0,0.00017999,2]
[404538471,1770263445102,-252.01216033,0.00017999,2]
[404538472,1770263445111,-202.419,0.00017999,2]
[404538473,1770263445122,-1010.6439,0.00017999,2]
[404538474,1770263445133,-300.0,0.00017999,2]
[404538475,1770263445142,-300.0,0.00017999,2]
[404538476,1770263445151,-300.0,0.00017999,2]
[404538477,1770263445162,-1555923.91013298,0.00018,2]
[404538478,1770263445188,-457.88304072,0.00018,2]
[404538490,1770263445557,-289.56523372,0.00013714,2]
[404538491,1770263445567,-514.67881028,0.00018,2]
[404538492,1770263445578,-651.48193505,0.00018,2]
[404538493,1770263445590,-786.50281022,0.00018,2]
[404538494,1770263445606,-4805.11179443,0.00018,2]
[404538495,1770263445617,-350.28045029,0.00018,2]
[404538496,1770263445741,-500.0,0.0001,2]
[404538497,1770263445750,-151.0,0.00016,2]
[404538498,1770263445760,-1957.63388952,0.00018,2]
[404538499,1770263445772,-1868.3,0.00018,2]
[404538500,1770263445785,-541.65,0.00018,2]
[404538562,1770263584153,-151.0,9.01e-05,2]
[404538573,1770263646676,155.0,9.01e-05,3]
[404538577,1770263712154,154.0,9.01e-05,3]
[404538578,1770263771858,155.0,9.01e-05,3]
[404538579,1770263788734,196.1,7.004e-05,2]
[404538581,1770263847565,155.0,9.01e-05,3]
[404538582,1770263888295,155.0,9.01e-05,3]
[404538583,1770263947254,155.0,9.01e-05,3]
[404538584,1770264010167,155.0,9.01e-05,3]
[404538595,1770264338800,-223.0,8.755e-05,2]
[404538596,1770264404812,-500.0,8.755e-05,2]
[404538597,1770264404837,-500.0,8.755e-05,2]
[404538598,1770264404858,-174.41,9e-05,2]
[404538599,1770264404887,-1454.14,9.01e-05,2]
[404538600,1770264404912,-2182.75994028,9.07e-05,2]
[404538601,1770264404935,-1200.0,9.553e-05,2]
[404538602,1770264465017,-150.0,9.554e-05,2]
[404538603,1770264465038,-33298.1738,9.555e-05,2]
[404538604,1770264465059,-1000.0,9.555e-05,2]
[404538605,1770264465081,-151.0,0.0001,2]
[404538606,1770264465102,-151.0,0.0001,2]
[404538607,1770264465123,-151.0,0.0001,2]
[404538608,1770264465146,-151.0,0.0001,2]
[404538609,1770264465167,-151.0,0.0001,2]
[404538610,1770264465188,-151.0,0.0001,2]
[404538611,1770264465210,-151.0,0.0001,2]
[404538612,1770264465231,-151.0,0.0001,2]
[404538613,1770264465252,-510.72054169,0.0001,2]
[404538614,1770264465272,-151.0,0.0001,2]
[404538615,1770264465293,-151.0,0.0001,2]
[404538616,1770264465315,-151.0,0.0001,2]
[404538617,1770264465335,-500.0,0.0001,2]
[404538618,1770264465356,-500.0,0.0001,2]
[404538619,1770264465378,-93.79571803,0.0001,2]
[404538634,1770264625757,5530.0,0.000125,3]
[404538647,1770264631609,-710.05,9.455e-05,2]
[404538650,1770264631620,-644.71052742,9.455e-05,2]
[404538652,1770264631632,-1131.66823526,9.455e-05,2]
[404538653,1770264631643,-1998.0,9.455e-05,2]
[404538655,1770264631674,-710.0,9.455e-05,2]
[404538656,1770264631685,-3285.931077,9.455e-05,2]
[404538657,1770264631696,-562.249999,9.455e-05,2]
[404538658,1770264631723,-584.79955105,9.455e-05,2]
[404538659,1770264631734,-1642.59694288,9.455e-05,2]
[404538660,1770264631745,-12540.54144071,9.455e-05,2]
[404538661,1770264631776,-387.105,9.455e-05,2]
[404538662,1770264631787,-4805.88522152,9.455e-05,2]
[404538663,1770264631798,-575.5876787,9.455e-05,2]
[404538664,1770264631835,-412.77728069,9.455e-05,2]
[404538665,1770264631847,-659.1457183,9.455e-05,2]
[404538666,1770264631858,-497.55228091,9.455e-05,2]
[404538667,1770264631868,-755.0198002,9.455e-05,2]
[404538671,1770264637664,-1741.08553388,9.455e-05,2]
[404538672,1770264637718,-3558.3,9.455e-05,2]
[404538673,1770264637777,-15433.24043523,9.455e-05,2]
[404538674,1770264637788,-1050.0,9.455e-05,2]
[404538675,1770264638009,-70999.99999999,9.455e-05,2]
[404538676,1770264638021,-2609.87988802,9.455e-05,2]
[404538677,1770264638040,-1000.0,9.455e-05,2]
[404538678,1770264638052,-500.0,9.455e-05,2]
[404538679,1770264638064,-1371.73716193,9.455e-05,2]
[404538680,1770264639742,-553.60634,9.455e-05,2]
[404538681,1770264639799,-713.21,9.455e-05,2]
[404538682,1770264639855,-2982679.76301492,9.455e-05,2]
[404538683,1770264640124,-5693.9408173,9.455e-05,2]
[404538685,1770264640188,-55190.5052505,9.455e-05,2]
[404538707,1770264643424,-426.0,9.455e-05,2]
[404538712,1770264643481,-5536.31568212,9.455e-05,2]
[404538713,1770264643493,-2140.84999,9.455e-05,2]
[404538714,1770264644283,-2081.77707483,9.455e-05,2]
[404538785,1770264645789,-3978.77963428,9.455e-05,2]
[404538786,1770264645846,-9162.40415099,9.455e-05,2]
[404538787,1770264646012,-12260.96395617,9.455e-05,2]
[404538788,1770264646024,-300.74830632,9.455e-05,2]
[404538789,1770264646063,-365.2715514,9.455e-05,2]
[404538917,1770264657066,5530.0,0.000125,3]
[404538922,1770264688875,5530.0,0.000124,3]
[404538923,1770264693069,-478.2020035,9.454e-05,2]
[404538924,1770264693097,-300.0,9.454e-05,2]
[404538925,1770264693135,-26894.7979965,9.455e-05,2]
[404538928,1770264720391,5530.0,0.000124,3]
[404538929,1770264752151,5530.0,0.000123,3]
[404538930,1770264783541,5530.0,0.000123,3]
[404538936,1770264815308,5530.0,0.000122,3]
[404538937,1770264846612,5530.0,0.000122,3]
[404538940,1770264877990,5530.0,0.000122,3]
[404538945,1770264909805,5530.0,0.000121,3]
[404538946,1770264941119,5530.0,0.000121,3]
[404538947,1770264972904,5530.0,0.000119,3]
[404538948,1770265004217,5530.0,0.000119,3]
[404538949,1770265035975,5530.0,0.000118,3]
[404538950,1770265067615,5530.0,0.000118,3]
[404538951,1770265099537,2723.10419294,0.000125,5]
[404538952,1770265099760,5530.0,0.000117,3]
[404538954,1770265131663,5530.0,0.000117,3]
[404538956,1770265163484,5530.0,0.000116,3]
[404538957,1770265194899,5530.0,0.000116,3]
[404538959,1770265226681,5530.0,0.000115,3]
[404538960,1770265258620,5530.0,0.000115,3]
[404538961,1770265290256,5530.0,0.000114,3]
[404538962,1770265322410,5530.0,0.000114,3]
[404538963,1770265353964,5530.0,0.000119,5]
[404538964,1770265354150,5530.0,0.000112,3]
[404538965,1770265385787,5530.0,0.000117,5]
[404538966,1770265386009,5530.0,0.000111,3]
[404538967,1770265417412,5530.0,0.000117,5]
[404538968,1770265417643,5530.0,0.000111,3]
[404538969,1770265450883,546.0,0.000115,5]
[404538979,1770265661558,1300.0,8.6e-05,3]
[404538981,1770265663644,2600.0,8.7e-05,3]
[404538983,1770265665749,1303.13319794,8.8e-05,3]
[404538984,1770265665775,2596.86680206,8.8e-05,3]
[404538985,1770265667841,5200.0,8.9e-05,3]
[404538986,1770265669933,6500.0,9e-05,3]
[404538992,1770265802141,1000.0,0.00013699,7]
[404539000,1770265831767,-455.121696,8.662e-05,2]
[404539003,1770265831778,-1539.12,8.706e-05,2]
[404539005,1770265831789,-300.0,9.014e-05,2]
[404539006,1770265831799,-1200.0,9.014e-05,2]
[404539008,1770265831808,-150.0,9.014e-05,2]
[404539009,1770265831818,-272.29526082,9.014e-05,2]
[404539010,1770265831827,-2642.6338445,9.015e-05,2]
[404539011,1770265831839,-522.43722123,9.015e-05,2]
[404539012,1770265831850,-9436.046035,9.015e-05,2]
[404539013,1770265831878,-918.44,9.015e-05,2]
[404539014,1770265831888,-286.7,9.015e-05,2]
[404539015,1770265831990,-28923.91049927,9.015e-05,2]
[404539016,1770265832000,-2500.0,9.015e-05,2]
[404539017,1770265832009,-187.89185227,9.026e-05,2]
[404539018,1770265832019,-568.45,9.031e-05,2]
[404539019,1770265832028,-2530.93734599,9.065e-05,2]
[404539020,1770265832038,-151.0,9.112e-05,2]
[404539021,1770265832047,-500.0,9.114e-05,2]
[404539023,1770265832057,-176.98660128,9.114e-05,2]
[404539025,1770265832066,-191.52527992,9.114e-05,2]
[404539026,1770265832075,-585.93574236,9.114e-05,2]
[404539027,1770265832084,-167.45602324,9.114e-05,2]
[404539028,1770265832093,-500.0,9.114e-05,2]
[404539029,1770265832103,-500.0,9.114e-05,2]
[404539030,1770265832111,-500.0,9.114e-05,2]
[404539031,1770265832124,-500.0,9.114e-05,2]
[404539032,1770265832133,-500.0,9.114e-05,2]
[404539033,1770265832142,-500.0,9.114e-05,2]
[404539034,1770265832152,-500.0,9.114e-05,2]
[404539035,1770265832161,-500.0,9.114e-05,2]
[404539036,1770265832170,-500.0,9.114e-05,2]
[404539037,1770265832180,-500.0,9.114e-05,2]
[404539038,1770265832189,-500.0,9.114e-05,2]
[404539039,1770265832198,-500.0,9.114e-05,2]
[404539040,1770265832208,-500.0,9.114e-05,2]
[404539041,1770265832475,-500.0,9.114e-05,2]
[404539042,1770265832495,-500.0,9.114e-05,2]
[404539043,1770265832503,-500.0,9.114e-05,2]
[404539044,1770265832512,-500.0,9.114e-05,2]
[404539045,1770265832522,-500.0,9.114e-05,2]
[404539046,1770265832531,-500.0,9.114e-05,2]
[404539047,1770265832540,-500.0,9.114e-05,2]
[404539048,1770265832549,-239.19245835,9.114e-05,2]
[404539049,1770265832559,-500.0,9.114e-05,2]
[404539050,1770265832568,-500.0,9.114e-05,2]
[404539051,1770265832577,-1733.71438817,9.115e-05,2]
[404539052,1770265832586,-205725.45289585,9.115e-05,2]
[404539053,1770265837881,-286.45067606,9.115e-05,2]
[404539054,1770265837891,-304.02902729,9.115e-05,2]
[404539055,1770265837905,-1462.29235884,9.115e-05,2]
[404539056,1770265838048,-381.27822225,9.115e-05,2]
[404539057,1770265838060,-476.33151153,9.115e-05,2]
[404539062,1770265839932,-25388.14256461,9.115e-05,2]
[404539063,1770265839944,-76152.16773475,9.115e-05,2]
[404539064,1770265839987,-276.43979398,9.115e-05,2]
[404539065,1770265839998,-2310.24529464,9.115e-05,2]
[404539066,1770265840047,-3187523.62059626,9.115e-05,2]
[404539067,1770265840056,-4123.3752,9.115e-05,2]
[404539068,1770265840065,-158.66,9.125e-05,2]
[404539069,1770265840075,-150.0,9.181e-05,2]
[404539070,1770265840084,-150.0,9.181e-05,2]
[404539071,1770265840093,-150.0,9.181e-05,2]
[404539072,1770265840102,-158.66,9.205e-05,2]
[404539073,1770265840111,-420.93,9.214e-05,2]
[404539074,1770265840121,-150.0,9.236e-05,2]
[404539075,1770265840130,-720.0,9.245e-05,2]
[404539076,1770265840139,-158.66,9.285e-05,2]
[404539077,1770265840149,-150.0,9.291e-05,2]
[404539078,1770265840158,-9999.99,9.296e-05,2]
[404539079,1770265840167,-9999.99,9.296e-05,2]
[404539080,1770265840176,-999.99,9.296e-05,2]
[404539081,1770265840185,-19045.94,9.296e-05,2]
[404539082,1770265840194,-155.49,9.3e-05,2]
[404539083,1770265840204,-4999.99,9.3e-05,2]
[404539084,1770265840213,-9999.99,9.3e-05,2]
[404539085,1770265840222,-150.99,9.3e-05,2]
[404539086,1770265840231,-299.99,9.3e-05,2]
[404539087,1770265840240,-20997.41,9.3e-05,2]
[404539088,1770265840250,-499.99,9.3e-05,2]
[404539089,1770265840260,-150.99,9.3e-05,2]
[404539090,1770265840269,-500.0,9.3e-05,2]
[404539091,1770265840278,-53048.0,9.315e-05,2]
[404539092,1770265840287,-5587.20473931,9.329e-05,2]
[404539093,1770265840300,-14744.72170526,9.329e-05,2]
[404539094,1770265840309,-26011.43683578,9.329e-05,2]
[404539095,1770265840322,-150.0,9.345e-05,2]
[404539096,1770265840332,-158.66,9.365e-05,2]
[404539097,1770265840341,-150.0,9.4e-05,2]
[404539098,1770265840350,-158.66,9.445e-05,2]
[404539099,1770265840359,-202.05134841,9.455e-05,2]
[404539100,1770265840371,-78305.521543,9.455e-05,2]
[404539102,1770265840380,-4544.6369448,9.455e-05,2]
[404539104,1770265840389,-79730.599457,9.455e-05,2]
[404539106,1770265840398,-420.93,9.488e-05,2]
[404539108,1770265840407,-155.61,9.502e-05,2]
[404539110,1770265840417,-250.0,9.529e-05,2]
[404539112,1770265840426,-500.0,9.529e-05,2]
[404539114,1770265840435,-500.0,9.574e-05,2]
[404539116,1770265840444,-9999.99,9.67e-05,2]
[404539117,1770265840454,-20758.12,9.67e-05,2]
[404539119,1770265840464,-2065.86,9.67e-05,2]
[404539122,1770265840473,-1839.19,9.683e-05,2]
[404539124,1770265840482,-150.0,9.726e-05,2]
[404539126,1770265840491,-500.0,9.726e-05,2]
[404539128,1770265840500,-420.93,9.762e-05,2]
[404539129,1770265840509,-150.0,9.781e-05,2]
[404539131,1770265840518,-500.0,9.781e-05,2]
[404539133,1770265840527,-150.0,9.836e-05,2]
[404539135,1770265840536,-456.05071944,9.836e-05,2]
[404539138,1770265840548,-500.0,9.848e-05,2]
[404539140,1770265840557,-1219.82,9.851e-05,2]
[404539142,1770265840566,-269.4491186,9.89e-05,2]
[404539143,1770265840576,-420.0,9.915e-05,2]
[404539144,1770265840585,-1680.0,9.915e-05,2]
[404539145,1770265840594,-255.0,9.915e-05,2]
[404539146,1770265840604,-6997.5987,9.973e-05,2]
[404539147,1770265840612,-1000.0,9.999e-05,2]
[404539148,1770265840621,-160.35043239,0.0001,2]
[404539149,1770265840630,-151.0,0.0001,2]
[404539150,1770265840640,-500.0,0.0001,2]
[404539151,1770265840649,-151.0,0.0001,2]
[404539152,1770265840658,-151.0,0.0001,2]
[404539153,1770265840668,-151.0,0.0001,2]
[404539154,1770265840677,-151.0,0.0001,2]
[404539155,1770265840686,-151.0,0.0001,2]
[404539156,1770265840695,-151.0,0.0001,2]
[404539157,1770265840707,-151.0,0.0001,2]
[404539158,1770265840715,-151.0,0.0001,2]
[404539159,1770265840724,-151.0,0.0001,2]
[404539160,1770265840733,-151.0,0.0001,2]
[404539161,1770265840745,-151.0,0.0001,2]
[404539162,1770265840754,-151.0,0.0001,2]
[404539163,1770265840763,-151.0,0.0001,2]
[404539164,1770265840777,-151.0,0.0001,2]
[404539165,1770265840786,-151.0,0.0001,2]
[404539166,1770265840798,-151.0,0.0001,2]
[404539167,1770265840807,-151.0,0.0001,2]
[404539168,1770265840816,-151.0,0.0001,2]
[404539169,1770265840826,-151.0,0.0001,2]
[404539170,1770265840835,-151.0,0.0001,2]
[404539171,1770265840844,-151.0,0.0001,2]
[404539172,1770265840853,-151.0,0.0001,2]
[404539173,1770265840862,-151.0,0.0001,2]
[404539174,1770265840871,-500.0,0.0001,2]
[404539175,1770265840880,-200.0,0.0001,2]
[404539176,1770265840889,-151.0,0.0001,2]
[404539177,1770265840898,-151.0,0.0001,2]
[404539178,1770265840907,-500.0,0.0001,2]
[404539179,1770265840916,-151.0,0.0001,2]
[404539180,1770265840926,-151.0,0.0001,2]
[404539181,1770265840935,-500.0,0.0001,2]